{"text_format":"3","workbook":"xlsx","n_sheets":6,"sheets":["0. Instructions","1. General Questionnaire","2. Mandatory Requirements","3. Technical A&B Schedule","4.Support Schedule","5. Deviation Schedule"],"read":"whole","date_system":"1900"}

{"sheet":"0. Instructions","index":0,"n_rows":60,"n_cols":3,"rows_kept":60,"merged":[[13,0,14,0],[13,1,14,1],[16,0,19,0],[16,1,19,1],[21,0,22,0],[21,1,22,1],[24,0,26,0],[24,1,26,1],[28,0,31,0],[28,1,31,1]]}
["Instructions for completing this workbook"]
[]
["1) The cells where information is required to be entered is unprotected in this workbook."]
["2) Complete all Light Green shaded areas with the relevant requested information. Where the colour shading is not shown, complete the accessible cells."]
["3) All information shall be submitted in electronic format and this workbook complete in MS Excel format as requested."]
["4) Any other format for the submission of the requested electronic information will NOT be evaluated."]
["5) Reference files shall be posted under the relevant folder names indicated below for the different sections of this workbook."]
["6) Filenames shall be descriptive to indicate what information it contains."]
["7) This excel document must be provided in duplicate with the name of the duplicate being “Transducer Schedules - Copy”.  "]
["8) The reference columns in all sheets are to be completed . Suppliers are required to reference supporting documentation to justify stated compliance."]
[]
["Completing the Worksheets"]
["Sheet Number","Sheet Description","Sheet Instructions"]
[1,"General Questionnaire","1) Complete all questions in the space provided."]
[null,null,"2) Post all relevant electronic copies of documents under a folder named the same as the sheet"]
[]
[2,"Mandatory Requirements - Item 1 - 1 x digital transducer  - no analogue outputs","1) Complete all technical gatekeepers in the space provided."]
[null,null,"2) Provide responses with references where required"]
[null,null,"3) Provide deviations with references where required [Deviations may be accepted if clarified with Eskom during the tender period, but not after tender closure]"]
[null,null,"4) Post all relevant electronic copies of documents under a folder named the same as the sheet"]
[]
[3,"Technical A&B Schedule - Item 1 - 1 x digital transducer  - no analogue outputs","1) Complete this worksheet with all relevant deviations."]
[null,null,"2) Post all relevant electronic copies of documents under a folder named the same as the sheet"]
[]
[4,"Risk & Support A&B Schedule - Item 1 - 1 x digital transducer  - no analogue outputs","1) Complete the worksheet as required."]
[null,null,"2) Give justification and references to support the answers provided"]
[null,null,"3) Post all relevant electronic copies of documents under a folder named the same as the sheet"]
[]
[5,"Deviation Schedule - Item 1 - 1 x digital transducer  - no analogue outputs","1) Complete this worksheet with all relevant deviations."]
[null,null,"2) Post all relevant electronic copies of documents under a folder named the same as the sheet"]
{"$rows_empty":29}
[null,"TE2021"]

{"sheet":"1. General Questionnaire","index":1,"n_rows":18,"n_cols":4,"rows_kept":18,"merged":[[1,1,1,3]]}
[]
[null,"General Questionnaire\n1 x digital transducer  - no analogue outputs\nThe technical requirements for this item are based on the requirements as stipulated in 240-519999977"]
[null,null,"Question","Response"]
[null,"A","Tenderer"]
[null,1,"Company name"]
[null,2,"Address of Head Quarters"]
[null,3,"Contact details"]
[null,4,"Website adress"]
[null,5,"State product name, make, model number and firmware proposed for 1 x digital transducer  - no analogue outputs"]
[]
[null,"B","Manufacturer / OEM"]
[null,1,"Company name"]
[null,2,"Address of Head Quarters"]
[null,3,"Contact details"]
[null,4,"Website address"]
[null,5,"Where is the equipment Research & Development performed?"]
[null,6,"Where is the equipment manufactured?"]
[null,7,"Where will equipment be sent that cannot be repaired locally?"]

{"sheet":"2. Mandatory Requirements","index":2,"n_rows":9,"n_cols":12,"rows_kept":9,"merged":[[1,1,1,8]]}
[]
[null,"Mandatory Requirements\nItem 1 - 1 x digital transducer  - no analogue outputs\nThe technical requirements for this item are based on the requirements as stipulated in 240-519999977"]
[null,null,"Technical Gatekeeper Compliance","Tender Returnable","Returnable required at tender closing (disqualifiable)","Returnable required at tender closing (non-disqualifiable)","Returnable required prior to contract award","Response","Reference e.g. page #, section # in manual/brochure, test certificate"]
[null,null,"Submissions are complete and should contain at least the following:"]
[null,1,"Are completed Technical A&B Schedules, including any deviations, submitted?","Completed Technical A&B Schedule","✔",{"$nulls":6},"Comply"]
[null,2,"Are all the required supporting documentation for the Technical A&B Schedule submitted?","All supporting documents required on the Technical A&B Schedule",null,"✔",{"$nulls":5},"No"]
[null,3,"Are completed Risk and Support A&B Schedules, including any deviations, submitted? ","Completed Risk and Support A&B Schedules ","✔"]
[null,4,"Are all the required supporting documentation for the Risk and Support Schedule submitted? ","All supporting documents required on the Risk and Support A&B Schedule",null,"✔"]
[null,5,"Completed Quality, Risk and Support Questionnaire in Annex B, Table B.1","Completed Quality, Risk and Support Questionnaire in Annex B, Table B.1",null,"✔"]

{"sheet":"3. Technical A&B Schedule","index":3,"n_rows":88,"n_cols":13,"rows_kept":88,"merged":[[1,1,1,5]]}
[]
[null,"Technical A&B Schedule\nItem 1 - 1 x digital transducer  - no analogue outputs \nThe technical requirements for this item are based on the requirements as stipulated in 240-519999977\n"]
[null,"Clause","DESCRIPTION","\nSCHEDULE A","\nSCHEDULE B\nYes, Partial or No ","Reference/Justification","Weight","Score\nYes = 3, \nPartial = 1, \nNo = 0","Total\n"]
[null,4.1,"General","Stated for information only"]
[null,"4.1. a)","All equipment and options shall be designed to meet the requirements for safety, applicable to the equipment specified (refer to [10] SANS/IEC 61010-1)","comply, specify",null,null,1,null,{"$f":"G5*H5","v":0},"Yes",null,null,0]
[null,"4.1.2","Categorization of equipment and products into items","Stated for information only",{"$nulls":5},"Partial",null,null,1]
[null,4.2,"Digital transducer only","Stated for information only",{"$nulls":5},"No",null,null,3]
[null,"4.2 a)","This option requests the supplier to provide a digital transducer to support the functionality as described in this specification.","Stated for information only"]
[null,"4.2 b)","The digital transducer shall support a 35 mm DIN-rail (top hat profile) fitting.","comply, specify",null,null,1,null,{"$f":"G9*H9","v":0}]
[null,"4.2 c)","The transducer housing shall have at least an IP40 rating as specified in [7] SANS/IEC 60529, and shall be made of a self-extinguishing, non-dripping material","comply, specify",null,null,1,null,0]
[null,4.5,"Physical requirements for digital transducer","Stated for information only"]
[null,"4.5.1","Transducer input terminals","Stated for information only"]
[null,"4.5.1 a) 1)","Terminals for Current Instrument Transformer (CT), Voltage Instrument Transformer (VT) and auxiliary supplies shall be the screw type and shall conform to [8] SANS/IEC 60947-7-1","comply, specify",null,null,1,null,{"$f":"G13*H13","v":0}]
[null,"4.5.1 a) 2)","Fastening of the supply wiring shall either be by means of two securing screws on each terminal, or by means of a clamp terminal using at least one screw.","comply",null,null,1,null,0]
[null,"4.5.1 a) 3)","Terminal identification shall be provided and shall be subject to NTCSA’s written approval.","comply",null,null,1,null,0]
[null,"4.5.3","Interfacing ports","Stated for information only"]
[null,"4.5.3 a) 1)","A dedicated interface port for Supervisory Control and Data Acquisition (SCADA) purposes that is configurable for RS232/RS485/Ethernet. It shall be possible to communicate to multiple transducers from a single SCADA device (multi-dropping/cascading). Multi-dropping should be easily accomplished by an appropriate multi-dropping communications cable between successive transducers, thereby ensuring a single communications cable between the first transducer and the SCADA device.","comply, specify",null,null,10,null,{"$f":"G17*H17","v":0}]
[null,"4.5.3 a) 2)","An engineering port RS232/RS485/Ethernet/Universal Serial Bus (USB) for configuring and maintenance purposes.","comply, specify",null,null,10,null,0]
[null,"4.5.3 a) 3)","A port to support a local display (item 4 in 3.1.2.2), if the display is supported separately.","comply, specify",null,null,10,null,0]
[null,5,"Electrical/technical requirements","Stated for information only"]
[null,5.1,"Internal transducer circuits","Stated for information only"]
[null,"5.1 a)","No common wiring connection shall be made internally in the transducer (excluding the neutral voltage).","comply",null,null,1,null,{"$f":"G22*H22","v":0}]
[null,"5.1 b)","Any internal circuits carrying current from the current terminals of the transducer shall be multi-strands, with a rating of at least 3 A/mm2. Specifically, no circuits that carry current from instrumentation current transformers under normal operating conditions shall be routed by way of a printed circuit board","comply, specify",null,null,10,null,0]
[null,5.2,"CT and VT inputs","Stated for information only"]
[null,"5.2 a)","The standard nominal voltage for the transducer is 110 V phase to phase.","comply, specify",null,null,10,null,{"$f":"G25*H25","v":0}]
[null,"5.2 b)","The standard nominal current is 1 A for a 1 A transducer and 5 A for a 5 A transducer.","comply, specify",null,null,10,null,0]
[null,"5.2 c)","All transducers using one or more CT input(s) shall withstand 120%  of the nominal value of the current continuously.","comply, specify",null,null,10,null,0]
[null,"5.2 d)","All transducers using one or more CT input(s) shall withstand 20 times the nominal value of the measured current applied for 1s and repeated 5 times at 300s intervals","comply, specify",null,null,10,null,0]
[null,"5.2 e)","The maximum burden on the CT inputs shall not be more than 0,3 VA for 1 A rating and 0,9 VA for 5 A rating.","comply, specify",null,null,10,null,0]
[null,"5.2 f)","Under no circumstances shall the CT inputs be open-circuit while connected to the transducer. If the transducer can be withdrawn from a rack, then the rack must provide for shorting of the current inputs.","comply",null,null,10,null,0]
[null,"5.2 g)","All transducers using one or more VT input(s) shall withstand and not be adversely affected by the input(s) rising to 120% of the nominal value of the voltage continuously","comply, specify",null,null,10,null,0]
[null,"5.2 h)","All transducers using one or more VT input(s) shall withstand 200% of the nominal value of the voltage applied for 1s and and repeated 10 times at 10s intervals.","comply, specify",null,null,10,null,0]
[null,"5.2 i)","The maximum burden on the VT inputs shall not be more than 0,5 VA. ","comply, specify",null,null,5,null,0]
[null,5.3,"Auxiliary supply","Stated for information only"]
[null,"5.3 a)","The transducer shall operate normally on an AC auxiliary supply ranging from 95 V to 265 V, 50 Hz and/or a DC auxiliary supply ranging from 100 V to 230 V.","comply, specify",null,null,10,null,{"$f":"G35*H35","v":0}]
[null,"5.3 b)","The digital transducer’s auxiliary supply input shall have a maximum burden of 10 VA.","comply, specify",null,null,5,null,0]
[null,5.6,"Accuracy classification","Stated for information only"]
[null,"5.6 a)","The accuracy class of all transducers shall be as detailed in Table 1 to Table 8","comply, specify",null,null,10,null,{"$f":"G38*H38","v":0}]
[null,"5.6.2","Permissible Intrinsic Error","Stated for information only"]
[null,"5.6.2 a)","When the transducer is under the reference conditions given in 10, 11 and 12, and is used between limits of the effective range, the error shall not exceed the limits of the intrinsic error expressed as a percentage of the fiducial value, given in 9 as a function of the class index.","comply, specify",null,null,10,null,{"$f":"G40*H40","v":0}]
[null,"5.6.3","Conditions under which intrinsic errors of transducers shall be determined","Stated for information only"]
[null,"5.6.3 a)","The transducer shall be at the ambient temperature. This temperature shall be the reference temperature (refer to Table 11) within the stated tolerances.","Stated for information only"]
[null,"5.6.3 b)","The transducer shall be left in-circuit under the conditions and for the time specified in Table 10.","Stated for information only"]
[null,"5.6.3 c)","For transducers with reversible output current (voltage), intrinsic errors shall be determined separately for each output polarity.","Stated for information only"]
[null,"5.6.3 d)","The transducer conditions relative to each of the influence quantities are given in Table 11. The reference conditions relative to voltage, current and power factor of the measured quantity are given in Table 12.","Stated for information only"]
[null,"5.6.4","Influence of harmonics on measurements ","Stated for information only"]
[null,"5.6.4 a)","The accuracy of the transducer outputs shall not be adversely affected by the presence of harmonic components in the current and voltage circuits. ","comply, specify",null,null,1,null,{"$f":"G47*H47","v":0}]
[null,"5.6.4 b)","The requirements under these conditions shall be at least according to the limits as specified by [2] IEC 60688, clause 6.10","comply, specify",null,null,1,null,0]
[null,6,"Functional requirements","Stated for information only"]
[null,6.1,"Measurands","Stated for information only"]
[null,"6.1 a)","The transducer shall be able to measure the following quantities:","Stated for information only"]
[null,"6.1 a)1)","True rms voltage","comply",null,null,1,null,{"$f":"G52*H52","v":0}]
[null,"6.1 a)2)","True rms current","comply",null,null,1,null,0]
[null,"6.1 a)3)","Active power","comply",null,null,1,null,0]
[null,"6.1 a)4)","Reactive power","comply",null,null,1,null,0]
[null,"6.1 a)5)","Frequency","comply",null,null,1,null,0]
[null,"6.1 a)6)","Power factor","comply",null,null,1,null,0]
[null,"6.1 a)7)","Phase angle","comply",null,null,1,null,0]
[null,6.2,"Wiring configuration","Stated for information only"]
[null,"6.2 a)","The transducer shall at least support the following network connections:","Stated for information only"]
[null,"6.2 a)1)","three-phase, three-wire system; and","comply",null,null,10,null,{"$f":"G61*H61","v":0}]
[null,"6.2 a)2)","three-phase, four-wire with unbalanced load system.","comply",null,null,10,null,0]
[null,"6.2 b)","These configurations will depend on the application of the transducer and shall be supported externally and/or by software configuration.","comply",null,null,10,null,0]
[null,6.5,"Protocol","Stated for information only"]
[null,"6.5 a)","The digital transducer shall support an interface to a SCADA (Remote Terminal Unit (RTU)) system. ","comply",null,null,10,null,{"$f":"G65*H65","v":0}]
[null,"6.5 b)","The interface and protocol shall be in accordance with an internationally recognized standard, with the following recommended:","Stated for information only"]
[null,"6.5 b)1)","Modbus RTU that support signed and unsigned 16 bit integer data formats","comply",null,null,10,null,{"$f":"G67*H67","v":0}]
[null,"6.5 b)3)","IEC 61850","comply",null,null,10,null,0]
[null,6.6,"Software","Stated for information only"]
[null,"6.6 a)","The measurement system (digital transducer) shall be supplied with the configuration software.","comply",null,null,1,null,{"$f":"G70*H70","v":0}]
[null,"6.6 b)","The Supplier shall provide NTCSA with a corporate licence agreement for all configuration-specific software provided.","comply",null,null,1,null,0]
[null,"6.6 c)","All software supplied with the system shall be documented comprehensively, including all the features and functions discussed, and a procedure on how to configure the transducers for the various applications (transformer bay, feeder bay, bus-coupler etc.). The documentation shall include a list of possible problems and how to solve them.","comply",null,null,10,null,0]
[null,"6.6 d)","Calibration functions shall only be available on authorized request with security (password) control.","comply",null,null,1,null,0]
[null,"6.6 e)","Calibration functionality shall be able to support functionality as described and specified in 7.3.","comply",null,null,1,null,0]
[null,"6.6 f)","Future revisions of software shall be supplied in terms of a contract, but shall be submitted in accordance with NTCSA standard[11] 240-76624509 .","comply",null,null,1,null,0]
[null,6.7,"General","Stated for information only"]
[null,"6.7 a)","All inputs and outputs to the digital transducer shall be clearly marked.","comply",null,null,1,null,{"$f":"G77*H77","v":0}]
[null,"6.7 b)","The labelling on the digital transducer shall display the following information:","Stated for information only"]
[null,"6.7 b)1)","current and voltage ratings;","comply",null,null,1,null,{"$f":"G79*H79","v":0}]
[null,"6.7 b)2)","auxiliary supply;","comply",null,null,1,null,0]
[null,"6.7 b)3)","interfacing ports with their respective functions;","comply",null,null,1,null,0]
[null,"6.7 b)4)","digital transducer serial number;","comply",null,null,1,null,0]
[null,"6.7 b)5)","manufacturer’s name;","comply",null,null,1,null,0]
[null,"6.7 b)6)","model/revision number; ","comply",null,null,1,null,0]
[null,"6.7 b)7)","calibration label with date/s and relevant of calibration details; and","comply",null,null,1,null,0]
[null,"6.7 b)8)","name of the configured scheme (transformer, feeder, bus-coupler etc.).","comply",null,null,1,null,0]
[null,null,"Company Name:",null,"Date"]
[null,null,"Representative Name:",null,"Signature"]

{"sheet":"4.Support Schedule","index":4,"n_rows":49,"n_cols":13,"rows_kept":49,"merged":[[1,1,1,5]]}
[]
[null,"Risk and Support A&B Schedule\nItem 1 - 1 x digital transducer  - no analogue outputs The technical requirements for this item are based on the requirements as stipulated in 240-519999977\n"]
[null,"Clause","DESCRIPTION","\nSCHEDULE A","\nSCHEDULE B\nYes, Partial or No ","Reference/Justification\nor Proposed Deviation",null,"Weight","Score\nYes = 3, \nPartial = 1, \nNo = 0","Total\n"]
[null,6.8,"Maintenance and training requirements","Stated for information only"]
[null,"6.8 a)","The supplier shall submit details on proposed training courses. The information shall include:","Stated for information only",{"$nulls":8},"Yes"]
[null,"6.8 a)1)","course outline;","comply, specify",{"$nulls":3},1,null,{"$f":"H6*I6","v":0},null,0,"Partial"]
[null,"6.8 a)2)","type of training offered;","comply, specify",{"$nulls":3},1,null,{"$f":"H7*I7","v":0},null,1,"No"]
[null,"6.8 a)3)","location of the training centre;","comply, specify",{"$nulls":3},1,null,0,null,3]
[null,"6.8 a)4)","duration and cost for each training course;","comply, specify",{"$nulls":3},1,null,0]
[null,"6.8 a)5)","maximum/minimum number of delegates per course; and","comply, specify",{"$nulls":3},1,null,0]
[null,"6.8 a)6)","course material.","comply",{"$nulls":3},1,null,0]
[null,"6.8 b)","The supplier shall state its willingness to present training courses at NTCSA premises.","comply, specify",{"$nulls":3},1,null,{"$f":"H12*I12","v":0}]
[null,6.9,"Documentation","Stated for information only"]
[null,"6.9 a)","Drawings, manuals and documentation are an essential part of the contract.","Stated for information only"]
[null,"6.9 b)","Information and wording on drawings shall be in English.","comply",{"$nulls":3},1,null,{"$f":"H15*I15","v":0}]
[null,"6.9 c)","The following drawings shall be submitted when a contract is awarded:","Stated for information only"]
[null,"6.9 c)1)","Outline drawings and fixing details.","comply",{"$nulls":3},1,null,{"$f":"H17*I17","v":0}]
[null,"6.9 c)2)","Functional block diagrams showing the overall operation of the equipment.","comply",{"$nulls":3},1,null,0]
[null,"6.9 c)3)","Connection diagrams for different configurations.","comply",{"$nulls":3},1,null,0]
[null,"6.9 c)4)","Service manuals, which shall be provided before delivery, and shall contain all information and procedures necessary for maintenance personnel to:","Stated for information only"]
[null,"6.9 c)5)","understand the functioning of the equipment and software;","comply",{"$nulls":3},1,null,{"$f":"H21*I21","v":0}]
[null,"6.9 c)6)","trace and eliminate faults; and","comply",{"$nulls":3},1,null,0]
[null,"6.9 c)7)","carry out routine preventative maintenance.","comply",{"$nulls":3},1,null,0]
[null,"6.9 c)8)","Service manuals shall be in hardcover, loose-leaf form and electronic Acrobat .pdf form. Any modifications thereto shall be described in detail, as a supplement to the service manual.","comply",{"$nulls":3},1,null,0]
[null,"6.9 d)","Copies of each manual shall be supplied to NTCSA","comply",{"$nulls":3},1,null,0]
[null,7,"Tests","Stated for information only"]
[null,7.1,"Type testing","Stated for information only"]
[null,"7.1 a)","The transducers shall be type tested according to either requirements specified in [2] IEC 60688, [12] IEC 62053 or a relevant, applicable ANSI standard at an approved test facility (test facility accredited by a full member facility which is listed at the International Laboratory Accreditation Cooperation (ILAC).","comply, specify",{"$nulls":3},10,null,{"$f":"H28*I28","v":0}]
[null,"7.1 b)","A copy of the test certificates and full type test reports shall be submitted to NTCSA as part of a tender submission.","comply, specify",{"$nulls":3},10,null,0]
[null,"7.1 c)","Type test certificates are to be provided in English or accompanied by a National Regulator for Compulsory Specifications (NRCS) Regulatory Compliance Certificate (RCC), if not in English.","comply, specify",{"$nulls":3},10,null,0]
[null,7.2,"Testing procedures","Stated for information only"]
[null,"7.2 a)","NTCSA reserves the right to appoint a representative to inspect the equipment at any stage in the manufacturing process and to witness any tests.","comply",{"$nulls":3},5,null,{"$f":"H32*I32","v":0}]
[null,7.3,"Calibration requirements","Stated for information only"]
[null,"7.3 a)","Software calibration shall be provided to permit the readjustment of full scale and zero, if applicable.","comply",{"$nulls":3},5,null,{"$f":"H34*I34","v":0}]
[null,"7.3 b)","All transducers shall be calibrated before delivery at test facility accepted by NTCSA. The transducer supplier/calibration facility shall apply a ‘TESTED’ sticker to the transducer before delivery.","comply",{"$nulls":3},5,null,0]
[null,"7.3 c)","A calibration certificate shall also be provided, which will provide test results at the test points indicated in Table 13.","comply, specify",{"$nulls":3},5,null,0]
[null,"7.3 d)","The calibration results shall also be available to NTCSA in an electronic format as an import file compatible with Microsoft Windows software.","comply",{"$nulls":3},5,null,0]
[null,8,"Spares and support","Stated for information only"]
[null,8.1,"Spares","Stated for information only"]
[null,"8.1 a)","The Supplier shall supply a comprehensive schedule of spares to be held, relating to all the transducer schemes and or part thereof. The Supplier is encouraged to include in this list any or all items recommended for the routine maintenance of the offered transducer schemes in service.","comply, specify",{"$nulls":3},5,null,{"$f":"H40*I40","v":0}]
[null,"8.1 b)","All spares shall be priced individually and shall be unambiguously referenced and described in the schedule.","comply, specify",{"$nulls":3},5,null,0]
[null,"8.1 c)","The Supplier shall commit (in writing) to being able to supply spares for all the transducer schemes and/or parts thereof locally for a minimum period of ten (10) years, subsequent to the expiry of the supply contract.","comply, specify",{"$nulls":3},10,null,0]
[null,"8.1 d)","The delivery time of locally held spares shall not exceed 24 h, ex-works, on receipt of a bona fide order.","comply",{"$nulls":3},5,null,0]
[null,8.2,"Support","Stated for information only"]
[null,"8.2 a)","Dedicated local expertise shall support all transducer schemes or parts thereof offered by the Supplier.","comply, specify",{"$nulls":3},5,null,{"$f":"H45*I45","v":0}]
[null,"8.2 b)","If any of the transducer schemes or parts thereof is sourced from overseas, NTCSA requires the maximum transfer of technology from the Supplier’s principals, to enhance local expertise capacity.","comply",{"$nulls":3},5,null,0]
[null,"8.2 c)","The Supplier shall make the necessary arrangements in this regard.","comply",{"$nulls":3},1,null,0]
[null,null,"Company Name:",null,"Date"]
[null,null,"Representative Name:",null,"Signature"]

{"sheet":"5. Deviation Schedule","index":5,"n_rows":3,"n_cols":4,"rows_kept":3,"merged":[[1,1,1,3]]}
[]
[null,"Deviation Schedule\nItem 1 - 1 x digital transducer  - no analogue outputs\nThe control of new products and version changes in technical software, firmware and hardware  -   240-76624509\nStandard for digital transducer-based measurement system for electrical quantities - 240-240-519999977\n"]
[null,"Item","Clause","Proposed Deviation"]